[Event "Czech Open-Rapid 2022"]
[Site "Pardubice"]
[Date "2022.07.20"]
[Round "1.1"]
[White "Lev, Lukas"]
[Black "Korobov, Anton"]
[Result "0-1"]
[ECO "A05"]
[WhiteElo "1679"]
[BlackElo "2692"]
[Annotator "TA"]
[PlyCount "60"]
[EventDate "2022.07.20"]
[EventType "swiss"]
[EventCountry "CZE"]
[SourceTitle "playchess.com"]
[Source "ChessBase"]
[SourceQuality "1"]
[TimeControl "1200+10"]

{[%evp 11,60,6,22,-27,33,0,22,-9,-14,-35,-22,-47,-41,-58,-58,-66,-34,-172,-178,-181,-185,-238,-246,-251,-245,-239,-233,-233,-254,-250,-239,-302,-304,-403,-345,-664,-673,-620,-583,-1568,-897,-1380,-1311,-29988,-29986,-29990,-29991,-29991,-29992,-29993,-29994]} 1. Nf3 {[%emt 0:00:03]} Nf6 {[%emt 0:00:04]} 2. g3 {[%emt 0:00:02]} b5 {[%emt 0:00:09]} 3. Bg2 {[%emt 0:00:07]} Bb7 {[%emt 0:00:03]} 4. O-O {[%emt 0:00:16]} e6 {[%emt 0:00:03]} 5. d3 {[%emt 0:00:16]} d5 {[%emt 0:00:03]} 6. Nbd2 {[%emt 0:00:24]} Be7 {[%emt 0:00:03]} 7. c4 {[%emt 0:00:07] A05: Réti Opening: 1 Nf3 Nf6.} (7. e4 {might be stronger.}) 7... a6 {[%emt 0:00:14] [#]} (7... bxc4 $11 8. dxc4 O-O) 8. Qc2 $146 {[%emt 0:00:52]} ({Predecessor:} 8. b3 O-O 9. Bb2 Nbd7 10. Qc2 c5 11. e3 Qb6 12. Rab1 Rac8 13. h3 Rfd8 14. Rfd1 Bf8 {0-1 (70) Mikhalevski,V (2536)-Milanovic,D (2469) Berlin 2015}) 8... O-O {[%emt 0:00:14]} 9. a3 {[%emt 0:00:39] The position is equal.} c5 {[%emt 0:00:14]} 10. Nb3 {[%emt 0:01:18]} Nbd7 {[%emt 0:00:27]} 11. Bf4 {[%emt 0:00:30]} Rc8 {[%emt 0:00:57]} 12. Rad1 {[%emt 0:00:59]} Qb6 {[%emt 0:00:16]} 13. Ne5 {[%emt 0:02:37]} Rfd8 {[%emt 0:00:30]} 14. Nd2 {[%emt 0:03:49] White does not recover from this.} (14. Nxd7 $15 Rxd7 15. Rfe1) 14... Nxe5 $19 {[%emt 0:00:19]} 15. Bxe5 {[%emt 0:00:04]} Ng4 {[%emt 0:00:45]} 16. Bf4 {[%emt 0:00:20]} (16. Nf3 $142) 16... e5 {[%emt 0:00:22]} 17. h3 {[%emt 0:00:44]} exf4 {[%emt 0:00:01]} 18. hxg4 {[%emt 0:00:03]} fxg3 {[%emt 0:00:03]} 19. fxg3 {[%emt 0:01:07]} Qg6 {[%emt 0:00:03]} 20. cxd5 {[%emt 0:02:29]} Bxd5 {[%emt 0:00:08]} ({Worse is} 20... Qxg4 21. e4) 21. e4 {[%emt 0:00:27]} Be6 {[%emt 0:00:10]} ({Weaker is} 21... Qxg4 22. exd5 Qxg3 23. Ne4 $16) 22. Bf3 {[%emt 0:01:04]} h5 {[%emt 0:00:13]} 23. gxh5 $2 {[%emt 0:00:50]} (23. Kg2 hxg4 24. Be2) 23... Qxg3+ {[%emt 0:00:04]} 24. Bg2 {[%emt 0:00:33]} c4 {[%emt 0:00:10][%cal Bc5c4,Bc4d3][%mdl 32] [#] ( -> ...Bc5+)} 25. Rf3 {[%emt 0:01:25]} Qg5 {[%emt 0:00:09] ...cxd3 is the strong threat.} 26. Nf1 {[%emt 0:01:10]} cxd3 {[%emt 0:00:15]} 27. Qb1 {[%emt 0:00:59]} Rc2 {[%emt 0:00:10][%csl Gc2][%cal Rg5g2] Black mates.} 28. Rg3 {[%emt 0:01:11]} Bc5+ {[%emt 0:00:13] A strong pair of Bishops.} 29. Kh1 {[%emt 0:00:14]} Qh4+ {[%emt 0:00:02]} 30. Nh2 {[%emt 0:00:10]} Qxg3 {[%emt 0:00:04] Weighted Error Value: White=1.08/Black=0.35} 0-1

[Event "Czech Open-Rapid 2022"]
[Site "Pardubice"]
[Date "2022.07.20"]
[Round "1.2"]
[White "Donchenko, Alexander"]
[Black "Dolensky, Filip"]
[Result "1-0"]
[ECO "A05"]
[WhiteElo "2640"]
[BlackElo "2051"]
[Annotator "TA"]
[PlyCount "91"]
[EventDate "2022.07.20"]
[EventType "swiss"]
[EventCountry "CZE"]
[SourceTitle "playchess.com"]
[Source "ChessBase"]
[SourceQuality "1"]
[TimeControl "1200+10"]

{[%evp 14,91,48,25,57,58,59,56,53,51,56,58,51,41,41,29,33,32,36,39,41,38,50,40,37,39,47,18,29,0,8,0,26,35,43,26,29,27,26,28,27,17,54,54,54,49,58,49,52,52,57,42,44,43,43,21,21,19,103,103,103,103,197,197,882,773,1645,1368,2264,1422,2446,1668,29974,29975,6544,3525,29970,29972,6989,5000]} 1. Nf3 {[%emt 0:00:02]} Nf6 {[%emt 0:00:01]} 2. g3 {[%emt 0:00:02]} g6 {[%emt 0:00:01]} 3. Bg2 {[%emt 0:00:03]} Bg7 {[%emt 0:00:02]} 4. O-O {[%emt 0:00:03]} d6 {[%emt 0:00:03]} 5. d4 {[%emt 0:00:03]} O-O {[%emt 0:00:05]} 6. b3 {[%emt 0:00:02]} c6 {[%emt 0:00:09]} 7. Bb2 {[%emt 0:00:02]} Bf5 {[%emt 0:00:18] is now more promising than 7...Nbd7.} 8. Nbd2 {[%emt 0:00:07] [#]} Be4 $146 {[%emt 0:00:38] A49: 1 d4 Nf6 2 Nf3 g6 3 g3: Anti-King's Indian systems.} ({Predecessor:} 8... d5 9. c4 Ne4 10. Re1 Nxd2 11. Qxd2 a5 12. Ne5 a4 13. Red1 Be6 14. cxd5 cxd5 15. Rdc1 Qb6 16. Ba3 axb3 17. axb3 {0-1 (37) Donchenko,A (2619)-Bortnyk,O (2604) Chess.com INT 2022}) 9. Nxe4 {[%emt 0:00:18]} Nxe4 {[%emt 0:00:02]} 10. c4 {[%emt 0:00:05]} e6 {[%emt 0:00:10] White is slightly better.} 11. Qc2 {[%emt 0:00:37]} d5 {[%emt 0:00:14]} 12. Ne5 {[%emt 0:00:08]} Nd6 {[%emt 0:00:30]} 13. h4 {[%emt 0:00:44][%cal Bh2h4,Bh4h5][%mdl 32]} Re8 {[%emt 0:00:44]} 14. Bf3 {[%emt 0:00:44]} Nd7 {[%emt 0:00:16]} 15. h5 {[%emt 0:00:04]} Nxe5 {[%emt 0:00:47]} 16. dxe5 {[%emt 0:00:02]} Nf5 {[%emt 0:00:03]} 17. Rad1 {[%emt 0:00:16]} Qg5 {[%emt 0:00:31]} 18. hxg6 {[%emt 0:00:35]} hxg6 {[%emt 0:00:11]} 19. e4 {[%emt 0:00:08]} dxe4 {[%emt 0:00:15]} 20. Bxe4 {[%emt 0:00:46]} (20. Qxe4 $5 {[%cal Rd1d7]} Rad8 21. Bc1 $14) 20... Rad8 {[%emt 0:00:11] Against Rd7} 21. b4 {[%emt 0:00:31]} Bf8 {[%emt 0:01:05]} 22. a3 {[%emt 0:00:23]} Rxd1 {[%emt 0:01:07]} 23. Rxd1 {[%emt 0:00:07]} Rd8 {[%emt 0:00:16] Prevents Rd7.} 24. Bc1 {[%emt 0:00:31] Prevents Ne3.} Qe7 {[%emt 0:00:50]} 25. Rxd8 {[%emt 0:01:03]} Qxd8 {[%emt 0:00:02]} 26. Qd3 {[%emt 0:00:03]} Qxd3 {[%emt 0:01:13]} 27. Bxd3 $11 {[%emt 0:00:02][%mdl 4096] Endgame KBB-KBN} Bg7 {[%emt 0:00:11]} 28. Bb2 {[%emt 0:00:09]} Kf8 {[%emt 0:00:22]} 29. Kg2 {[%emt 0:00:05]} Ke8 {[%emt 0:00:22]} 30. g4 {[%emt 0:00:29]} Ne7 {[%emt 0:00:30]} 31. f4 {[%emt 0:00:26]} Kd7 {[%emt 0:00:22]} 32. Bd4 {[%emt 0:00:05]} Nc8 {[%emt 0:00:28]} 33. Kf3 {[%emt 0:00:13]} Bf8 {[%emt 0:00:03]} 34. f5 {[%emt 0:01:01]} gxf5 {[%emt 0:00:02]} 35. gxf5 {[%emt 0:00:03]} b6 {[%emt 0:00:24]} (35... Bh6 $11 {keeps the balance.}) 36. f6 $16 {[%emt 0:00:20]} c5 {[%emt 0:00:03]} 37. Bc3 {[%emt 0:00:15] White is more active.} Ke8 {[%emt 0:01:04]} (37... cxb4 $16 {keeps fighting.} 38. axb4 a6) 38. b5 $18 {[%emt 0:00:27][%cal Bb4b5,Bb5a6][%mdl 32] [#] Black must now prevent Bd2.} Kd8 $2 {[%emt 0:00:16]} (38... Bh6 39. a4 Kd8) 39. Bd2 {[%emt 0:00:04]} a6 {[%emt 0:00:55]} 40. bxa6 {[%emt 0:00:13]} Na7 {[%emt 0:00:02]} 41. Be4 {[%emt 0:00:10] Threatens to win with a4.} Kd7 {[%emt 0:00:08]} 42. a4 {[%emt 0:00:14] [#] White wants to mate with Kg4.} Kd8 {[%emt 0:00:19]} 43. Kg4 {[%emt 0:00:05]} Kc7 {[%emt 0:00:39]} 44. Kh5 {[%emt 0:00:03] Intending Bb7 and mate.} Kd8 {[%emt 0:00:09]} 45. Bh6 {[%emt 0:00:10]} Ke8 {[%emt 0:01:55]} 46. Bg7 {[%emt 0:00:04] Weighted Error Value: White=0.06 (flawless) /Black=0.52} 1-0

[Event "Czech Open-Rapid 2022"]
[Site "Pardubice"]
[Date "2022.07.20"]
[Round "1.3"]
[White "Maklakova, Naomi"]
[Black "Harsha Bharathakoti"]
[Result "0-1"]
[ECO "D02"]
[WhiteElo "1548"]
[BlackElo "2547"]
[Annotator "TA"]
[PlyCount "70"]
[EventDate "2022.07.20"]
[EventType "swiss"]
[EventCountry "CZE"]
[SourceTitle "playchess.com"]
[Source "ChessBase"]
[SourceQuality "1"]
[TimeControl "1200+10"]

{[%evp 15,70,-5,-6,-8,-12,-13,0,0,0,0,-7,-23,0,-9,-11,-77,-80,-81,-79,-352,-345,-349,-359,-352,-351,-339,-341,-343,-351,-352,-312,-427,-418,-447,-435,-438,-433,-457,-460,-474,-482,-517,-503,-498,-479,-479,-451,-629,-625,-737,-732,-786,-768,-980,-980,-2479,-2461]} 1. d4 {[%emt 0:00:10]} d5 {[%emt 0:00:05]} 2. Nf3 {[%emt 0:00:00]} e6 {[%emt 0:00:02]} 3. Bf4 {[%emt 0:00:09]} Nf6 {[%emt 0:00:15]} 4. e3 {[%emt 0:00:04]} c5 {[%emt 0:00:14]} 5. c3 {[%emt 0:00:04]} Bd6 {[%emt 0:00:17]} 6. Bg3 {[%emt 0:00:06]} Qc7 {[%emt 0:00:19]} 7. Bd3 {[%emt 0:00:17]} Nbd7 {[%emt 0:00:07]} 8. Nbd2 {[%emt 0:00:04]} O-O {[%emt 0:00:19]} 9. O-O {[%emt 0:00:06] D02: 1 d4 d5 2 Nf3 sidelines, including 2...Nf6 3 g3 and 2...Nf6 3 Bf4.} Bxg3 {[%emt 0:01:04]} 10. hxg3 {[%emt 0:00:19]} e5 {[%emt 0:00:02]} 11. dxe5 {[%emt 0:00:07] The position is equal.} Nxe5 {[%emt 0:00:02]} 12. Nxe5 {[%emt 0:00:21]} Qxe5 {[%emt 0:00:03]} 13. Re1 {[%emt 0:00:28]} Rd8 {[%emt 0:01:51]} 14. Qf3 {[%emt 0:02:27] [#]} Be6 $146 {[%emt 0:02:09]} ({Predecessor:} 14... b6 15. Qf4 Qh5 16. Be2 Bg4 17. f3 Bd7 18. Bd3 Re8 19. e4 Qg6 20. g4 Bc6 {½-½ (60) Arencibia Monduy,A (2148)-Brodsky,D (2455) Chess.com INT 2020}) 15. e4 {[%emt 0:01:13]} (15. a4 $11 {remains equal.}) 15... Bg4 $17 {[%emt 0:01:59]} 16. Qe3 {[%emt 0:00:39] [#]} d4 $1 $36 {[%emt 0:00:02][%mdl 2048] Black has strong initiative.} 17. cxd4 {[%emt 0:00:13][%mdl 8192] Loses the game.} (17. Nc4 $17) 17... Qxd4 $19 {[%emt 0:00:01]} 18. Qxd4 {[%emt 0:01:14]} Rxd4 {[%emt 0:00:02]} 19. Nb3 {[%emt 0:00:29]} Rxd3 {[%emt 0:00:03]} 20. f3 {[%emt 0:00:13]} Be6 {[%emt 0:00:10]} ({Wrong is} 20... c4 $2 21. Nc5 Rd2 22. fxg4 $19) 21. Nxc5 {[%emt 0:00:04]} Rd2 {[%emt 0:00:02]} 22. b3 {[%emt 0:00:38]} Rc8 {[%emt 0:00:11]} 23. Nxe6 {[%emt 0:00:21]} fxe6 {[%emt 0:00:02]} 24. Rac1 {[%emt 0:00:07]} Rcc2 {[%emt 0:00:15] Black is clearly winning.} 25. Rxc2 {[%emt 0:00:09]} Rxc2 {[%emt 0:00:02][%mdl 4096] Endgame KRN-KR} 26. a4 {[%emt 0:00:11]} Kf7 {[%emt 0:00:06]} 27. Rd1 {[%emt 0:00:12]} Ke7 {[%emt 0:00:02] Against Rd8} 28. Rd3 {[%emt 0:00:41]} Nd7 {[%emt 0:00:12]} 29. b4 {[%emt 0:00:24]} Rc4 {[%emt 0:00:30]} 30. Rb3 {[%emt 0:00:14]} Ne5 {[%emt 0:00:06]} 31. Kf2 {[%emt 0:00:46] [#]} Rxb4 $3 {[%emt 0:00:04][%mdl 512]} 32. Rc3 {[%emt 0:00:08]} (32. Ra3 Rb2+) 32... Nc4 {[%emt 0:00:26]} 33. Ke2 {[%emt 0:00:25]} Rxa4 {[%emt 0:00:03]} 34. Kd3 {[%emt 0:00:03]} b5 {[%emt 0:00:03] aiming for ...Ra3.} 35. Rb3 {[%emt 0:00:06]} Ra3 {[%emt 0:00:03] Weighted Error Value: White=0.66/Black=0.06 (flawless)} 0-1

[Event "Czech Open-Rapid 2022"]
[Site "Pardubice"]
[Date "2022.07.20"]
[Round "1.4"]
[White "Babula, Vlastimil sr"]
[Black "Dusek, Vladimir"]
[Result "0-1"]
[ECO "C02"]
[WhiteElo "2556"]
[BlackElo "1596"]
[Annotator "TA"]
[PlyCount "39"]
[EventDate "2022.07.20"]
[EventType "swiss"]
[EventCountry "CZE"]
[SourceTitle "playchess.com"]
[Source "ChessBase"]
[SourceQuality "1"]
[TimeControl "1200+10"]

{[%evp 12,38,29,-24,-31,-30,0,0,-4,-3,733,724,709,728,794,820,945,930,1381,1354,2994,2661,29988,29989,29989,29990,29998,29997,29999]} 1. e4 {[%emt 0:00:05]} e6 {[%emt 0:00:02]} 2. d4 {[%emt 0:00:03]} d5 {[%emt 0:00:02]} 3. e5 {[%emt 0:00:05]} c5 {[%emt 0:00:03]} 4. c3 {[%emt 0:00:03]} Nc6 {[%emt 0:00:04]} 5. Nf3 {[%emt 0:00:04]} Bd7 {[%emt 0:00:10]} 6. Bd3 {[%emt 0:00:04]} Qb6 {[%emt 0:00:09]} 7. O-O {[%emt 0:00:05] 7.0-0 is better than 7.dxc5.} (7. dxc5 $142 Bxc5 8. O-O) 7... cxd4 $11 {[%emt 0:00:32] C02: French: Advance Variation.} 8. Re1 {[%emt 0:00:05]} dxc3 {[%emt 0:01:18]} 9. Nxc3 {[%emt 0:00:04][%cal Bb1c3,Bc3b5,Bb5d6][%mdl 32]} Nge7 {[%emt 0:00:11] The position is equal.} 10. Be3 {[%emt 0:01:03] [#]} Qc7 $146 {[%emt 0:01:58][%mdl 8192]} (10... Qxb2 $2 11. Nb5 $18) (10... Qd8 $11) ({Predecessor:} 10... Qd8 11. Bg5 h6 12. Nb5 Qb6 13. Be3 d4 14. Nfxd4 Nd5 15. Nxe6 Nxe3 16. Nec7+ Kd8 17. Rxe3 Rc8 18. e6 fxe6 19. Nxe6+ Bxe6 20. Rxe6 Bc5 21. Bf5+ Bd4 22. Nxd4 {1-0 (22) Gracia Alvarez,G (2237)-Al Tarbosh,W (2213) Chess.com INT 2022}) 11. Nb5 $18 {[%emt 0:00:05]} Qb8 {[%emt 0:00:43]} 12. Nd6+ {[%emt 0:00:04][%mdl 64] [#] Deflection} Kd8 {[%emt 0:00:34]} 13. Nxf7+ {[%emt 0:00:03]} Ke8 {[%emt 0:00:16]} 14. Nxh8 {[%emt 0:00:06]} Nxe5 {[%emt 0:00:14]} 15. Bf4 {[%emt 0:00:16]} Nxf3+ {[%emt 0:00:15]} 16. Qxf3 {[%emt 0:00:04]} ({Weaker is} 16. gxf3 Qxf4 17. Bxh7 Kd8 $14) 16... Qd8 {[%emt 0:00:19]} 17. Qh5+ {[%emt 0:00:17] White mates.} g6 {[%emt 0:00:23]} 18. Qxh7 {[%emt 0:00:07][%csl Gh8][%cal Rh7f7]} Bc8 {[%emt 0:00:42]} 19. Bb5+ {[%emt 0:00:06]} Nc6 {[%emt 0:00:12]} 20. Qf7# {[%emt 0:00:03][%mdl 32768] Black did not feel at home in the position after the opening.  Weighted Error Value: White=0.13 (very precise) /Black=0.76. Loss on time!?} 0-1

[Event "Czech Open-Rapid 2022"]
[Site "Pardubice"]
[Date "2022.07.20"]
[Round "1.5"]
[White "Mlejnek, Stanislav"]
[Black "Plat, Vojtech"]
[Result "0-1"]
[ECO "B31"]
[WhiteElo "1666"]
[BlackElo "2554"]
[Annotator "TA"]
[PlyCount "86"]
[EventDate "2022.07.20"]
[EventType "swiss"]
[EventCountry "CZE"]
[SourceTitle "playchess.com"]
[Source "ChessBase"]
[SourceQuality "1"]
[TimeControl "1200+10"]

{[%evp 14,86,24,-22,0,0,-3,-16,8,2,5,-22,0,-18,0,0,-2,-8,-7,-28,-14,-8,-18,-41,0,-34,-46,-78,-22,-45,-25,-25,0,-10,0,0,15,-24,0,-22,0,-47,-53,-85,-95,-90,-87,-90,-94,-91,-95,-123,-114,-159,-159,-245,-244,-241,-247,-244,-233,-231,-231,-201,-150,-232,-235,-362,-353,-502,-474,-592,-606,-29998,-29999]} 1. e4 {[%emt 0:00:02]} c5 {[%emt 0:00:02]} 2. Nf3 {[%emt 0:00:03]} Nc6 {[%emt 0:00:01]} 3. Bb5 {[%emt 0:00:03]} g6 {[%emt 0:00:02]} 4. O-O {[%emt 0:00:09]} Bg7 {[%emt 0:00:02]} 5. c3 {[%emt 0:00:06]} Nf6 {[%emt 0:00:02]} 6. Re1 {[%emt 0:00:05]} O-O {[%emt 0:00:02]} 7. d4 {[%emt 0:00:09]} cxd4 {[%emt 0:00:01] 7...d5 injects fresh life into this line.} 8. Nxd4 (8. cxd4 {feels stronger.} a6 9. Bxc6 dxc6 10. h3) 8... a6 {[%emt 0:00:42] B31: Sicilian: 2...Nc6 3 Bb5 g6.} 9. Bf1 {[%emt 0:00:16]} d6 {[%emt 0:00:08] [#]} 10. g3 $146 {[%emt 0:00:20]} ({Predecessor:} 10. a4 Bd7 11. Nd2 Rc8 12. N2f3 Qb6 13. Qb3 Qxb3 14. Nxb3 Ng4 15. Bg5 h6 16. Bh4 {1-0 (51) Zadrapa,R (2025)-Skiba,A (1795) Vsetin 2019}) 10... Bd7 {[%emt 0:00:04] The position is equal.} 11. Bg2 {[%emt 0:00:01]} Rc8 {[%emt 0:00:08]} 12. Nd2 {[%emt 0:00:15]} Ne5 {[%emt 0:00:09]} 13. N2f3 {[%emt 0:00:10]} Qb6 {[%emt 0:00:16]} 14. Nxe5 {[%emt 0:00:14]} dxe5 {[%emt 0:00:01]} 15. Nf3 {[%emt 0:00:08]} Qc7 {[%emt 0:00:44]} 16. Bd2 {[%emt 0:00:55]} Bc6 {[%emt 0:00:04]} 17. Qc2 Rfd8 18. Rad1 {[%emt 0:01:10]} Ne8 {[%emt 0:00:29]} 19. Bc1 {[%emt 0:00:15]} Nd6 {[%emt 0:00:01]} 20. Bh3 {[%emt 0:01:20] [#]} e6 {[%emt 0:00:05]} (20... Bxe4 $1 $17 21. Rxe4 Nxe4 22. Bxc8 (22. Rxd8+ $2 Rxd8 23. Ng5 Nd6 $19) 22... Rxd1+ 23. Qxd1 Qxc8) 21. Bg5 $11 {[%emt 0:00:24]} Rd7 {[%emt 0:00:01]} 22. Nd2 {[%emt 0:01:59]} h6 {[%emt 0:00:05]} 23. Be3 {[%emt 0:00:07]} Rcd8 {[%emt 0:00:02][%cal Od6e4]} 24. Bg2 {[%emt 0:00:26]} Kh7 {[%emt 0:00:01]} 25. Nb3 {[%emt 0:00:11]} b6 {[%emt 0:00:06] Inhibits Nc5.} 26. h4 {[%emt 0:01:14]} Qb7 {[%emt 0:00:17][%cal Rc6e4]} 27. Bc1 {[%emt 0:01:16]} (27. Nd2 $11) 27... f5 $15 {[%emt 0:00:08][%cal Rd6e4]} 28. Nd2 {[%emt 0:00:36] [#]} Nxe4 $1 {[%emt 0:00:50] Black is more active. Black keeps a firm grip on the game.} 29. Nxe4 {[%emt 0:00:20]} Rxd1 {[%emt 0:00:03]} 30. Rxd1 {[%emt 0:00:26]} Rxd1+ {[%emt 0:00:02]} 31. Qxd1 {[%emt 0:00:30] Threatens to win with Nd6.} Bxe4 {[%emt 0:00:00]} 32. Bxe4 {[%emt 0:00:28]} Qxe4 $17 {[%emt 0:00:02][%mdl 4096] Endgame KQB-KQB} 33. Be3 {[%emt 0:00:16]} b5 {[%emt 0:00:00]} 34. Qb3 {[%emt 0:00:57]} (34. a3 $17 {was worth a try.}) 34... f4 $19 {[%emt 0:00:02]} 35. Bb6 {[%emt 0:01:29]} Qc6 {[%emt 0:00:59]} 36. Ba5 {[%emt 0:01:14]} fxg3 {[%emt 0:00:05]} 37. fxg3 {[%emt 0:00:02]} e4 {[%emt 0:00:53] aiming for ...Qd6.} 38. Qc2 {[%emt 0:00:10]} Be5 {[%emt 0:00:16]} 39. g4 {[%emt 0:00:48]} (39. Qf2 $17 {might work better.}) 39... Qd5 {[%emt 0:00:12]} 40. a3 {[%emt 0:00:15]} (40. Qe2 {is a better defense.}) 40... Bf6 {[%emt 0:00:05]} 41. Qf2 {[%emt 0:02:00]} (41. h5 $142 Qd3 42. Qxd3 exd3 43. Kf1) 41... Qd1+ {[%emt 0:00:00]} 42. Kh2 {[%emt 0:00:25]} Be5+ {[%emt 0:00:00]} 43. Kh3 {[%emt 0:00:10]} Qh1+ {[%emt 0:00:07] Weighted Error Value: White=0.48/Black=0.12 (very precise)} 0-1

[Event "Czech Open-Rapid 2022"]
[Site "Pardubice"]
[Date "2022.07.20"]
[Round "1.6"]
[White "Stocek, Jiri"]
[Black "Lihotsky, Lukas"]
[Result "1-0"]
[ECO "B13"]
[WhiteElo "2548"]
[BlackElo "1935"]
[Annotator "TA"]
[PlyCount "101"]
[EventDate "2022.07.20"]
[EventType "swiss"]
[EventCountry "CZE"]
[SourceTitle "playchess.com"]
[Source "ChessBase"]
[SourceQuality "1"]
[TimeControl "1200+10"]

{[%evp 10,101,20,-19,27,-15,-11,-51,0,9,13,7,4,-25,8,3,1,0,0,0,0,-2,0,-17,0,0,25,25,25,21,47,46,47,47,47,51,57,53,74,71,75,77,98,103,103,99,110,89,87,75,76,87,109,103,105,103,110,105,93,0,150,0,0,-208,41,21,73,0,181,92,433,418,917,900,760,260,1035,1016,925,847,1233,779,1789,1772,1910,1628,1631,1528,1399,1124,2135,447,29981,29981]} 1. e4 {[%emt 0:00:02]} c6 {[%emt 0:00:04]} 2. d4 {[%emt 0:00:03]} d5 {[%emt 0:00:01]} 3. exd5 {[%emt 0:00:08]} cxd5 {[%emt 0:00:01]} 4. c4 {[%emt 0:00:01]} Nf6 {[%emt 0:00:01]} 5. Nc3 {[%emt 0:00:02]} Nc6 {[%emt 0:00:01]} 6. Bf4 {[%emt 0:00:26]} Bg4 {[%emt 0:01:21] B13: Caro-Kann: Exchange Variation and Panov-Botvinnik Attack.} (6... g6 $142) 7. f3 {[%emt 0:01:38]} Bf5 {[%emt 0:00:30]} 8. c5 {[%emt 0:01:06]} e6 {[%emt 0:01:32]} ({Black should play} 8... Nd7 $1 $15) 9. Bb5 $11 {[%emt 0:02:20]} Be7 {[%emt 0:00:26]} 10. Nge2 {[%emt 0:00:09]} O-O {[%emt 0:00:12] [#]} 11. Qd2 $146 {[%emt 0:00:52]} ({Predecessor:} 11. O-O Rc8 12. a3 Ne8 13. b4 Bg5 14. Bg3 h5 15. Bxc6 bxc6 16. Qb3 h4 17. Bf2 {0-1 (47) Lang,S (1506)-Brozka,K (1816) Pardubice 2019}) 11... Re8 {[%emt 0:00:30]} 12. O-O {[%emt 0:01:14]} Nd7 {[%emt 0:01:56]} 13. Bg3 {[%emt 0:01:42][%cal Bf4g3,Bg3f2,Bf2e3][%mdl 32]} Rc8 {[%emt 0:03:07]} 14. Rac1 {[%emt 0:00:35]} Bg5 {[%emt 0:02:58]} 15. f4 {[%emt 0:00:16]} Be7 {[%emt 0:00:30]} 16. Bf2 {[%emt 0:00:23]} Nf6 {[%emt 0:00:23]} 17. h3 {[%emt 0:00:43]} Ne4 {[%emt 0:00:17]} 18. Nxe4 {[%emt 0:00:28]} Bxe4 {[%emt 0:00:01]} 19. Nc3 {[%emt 0:00:41]} f5 {[%emt 0:00:28]} 20. Be3 {[%emt 0:00:23]} Rf8 {[%emt 0:00:20]} 21. b4 {[%emt 0:00:36]} Qe8 {[%emt 0:00:51]} 22. Be2 {[%emt 0:01:21]} a6 {[%emt 0:00:39]} 23. a4 {[%emt 0:00:59]} Bh4 {[%emt 0:00:48]} 24. Bf2 {[%emt 0:01:30]} Bxf2+ {[%emt 0:00:31]} 25. Rxf2 {[%emt 0:00:07]} Qg6 {[%emt 0:01:24]} 26. b5 {[%emt 0:00:39]} axb5 {[%emt 0:00:01]} 27. axb5 {[%emt 0:00:02]} Ne7 {[%emt 0:00:02]} 28. Na4 {[%emt 0:00:30][%cal Oc5c6]} Ra8 {[%emt 0:01:06]} 29. Nb6 {[%emt 0:00:20] And now c6 would win.} Ra3 {[%emt 0:00:07]} 30. Rc3 {[%emt 0:00:05]} Rxc3 {[%emt 0:00:52]} 31. Qxc3 {[%emt 0:00:02]} Qe8 {[%emt 0:00:32] Prevents Nd7.} 32. Bf1 {[%emt 0:00:31] White is more active.} Qd8 {[%emt 0:01:03]} 33. Ra2 {[%emt 0:01:36]} Qc7 {[%emt 0:00:01]} 34. g3 {[%emt 0:00:10]} (34. Qd2 $16) 34... h6 {[%emt 0:00:44]} (34... g5 $1 $11) 35. h4 {[%emt 0:00:07]} (35. Na8 $16 Qc8 36. b6 (36. Nb6 Qc7 $16)) 35... g5 $1 {[%emt 0:01:41]} 36. Qc1 {[%emt 0:00:55]} (36. hxg5 $11 {and White has nothing to worry.} hxg5 37. Na8 (37. fxg5 f4 $15)) 36... Ng6 $2 {[%emt 0:00:21]} (36... gxh4 $19 {...Kh7 is the strong threat.} 37. Qe3 Kh7) 37. h5 $14 {[%emt 0:00:03]} (37. hxg5 hxg5 38. Kf2 gxf4 39. gxf4 Qh7 $17) 37... Ne7 {[%emt 0:00:07]} (37... Nh8 $1 $11 {remains equal.}) 38. Kh2 {[%emt 0:00:23]} ({Better is} 38. Ra3 $16) 38... g4 $2 {[%emt 0:00:16] [#]} (38... Kh7 $1 $11 {and Black stays safe.}) 39. Qa1 {[%emt 0:00:22]} (39. Kg1 $1 $18) 39... Kf7 $2 {[%emt 0:00:25][%mdl 8192] Black cannot hold the game after this.} (39... Nc8 $16 {is tougher.}) 40. Ra8 $18 {[%emt 0:00:14]} Nc8 {[%emt 0:00:03]} (40... Ng8 $142 41. Rxf8+ Kxf8) 41. Nxc8 {[%emt 0:00:29]} Rxc8 {[%emt 0:00:01]} 42. b6 $2 {[%emt 0:00:39]} (42. c6 Kf6 43. Qa3 bxc6 44. b6) 42... Qd7 $2 {[%emt 0:00:02]} (42... Rxa8 43. Qxa8 (43. bxc7 Rxa1 44. c8=Q Rxf1 $11) 43... Qd7) 43. Rxc8 {[%emt 0:00:11]} Qxc8 {[%emt 0:00:01][%mdl 4096] Endgame KQB-KQB} 44. Bb5 {[%emt 0:00:15] Strongly threatening Qa7.} Kf6 {[%emt 0:00:30]} 45. Qa7 {[%emt 0:00:19] aiming for Kg1.} Bf3 {[%emt 0:00:18]} 46. Kg1 {[%emt 0:00:25]} Be4 {[%emt 0:00:09]} 47. Kf2 {[%emt 0:00:02]} Bf3 {[%emt 0:00:10]} 48. Ke3 {[%emt 0:00:01]} Bd1 {[%emt 0:00:22]} 49. Kd2 {[%emt 0:00:17]} Bb3 {[%emt 0:00:04]} 50. Ba6 {[%emt 0:00:32]} Qc6 {[%emt 0:00:12] [#]} (50... bxa6 51. b7 Qd8 52. Qb6 (52. b8=Q Qa5+ 53. Ke3 Qe1+ 54. Kd3 Bc4+ 55. Kc2 Qe2+ 56. Kc3 Qe3+ 57. Kc2 Qe2+ 58. Kc3 Qe3+ 59. Kc2 Qe2+ $11) 52... Qe8 53. b8=Q Ba4 54. Qxe8 Bxe8 55. Qxa6) (50... Qe8 $18 51. Bd3 (51. Qxb7 Qa4 $11) 51... Bc4) 51. Qb8 $1 {[%emt 0:00:17] Weighted Error Value: White=0.49/Black=0.62} 1-0